Cogmind - Beta 9.2 @@@ ROGUE MODE // 2019.12.15 @ 00:16:26 Player: Djoumar Result: Destroyed by S-10 Pest with Light Assault Rifle Performance ------------- Evolutions (0) 0 Regions Visited (1) 200 Robots Destroyed (15) 75 Value Destroyed (166) 166 Prototype IDs (0) 0 Alien Tech Used (0) 0 Bonus (0) 0 TOTAL SCORE: 441 Bonus ------- None Cogmind --------- Core Integrity 0/250 Matter 294/300 Energy 87/100 System Corruption 2% Temperature Cool (15) Movement Core (550) Ox10 Location -10/Materials Parts ------- > --- POWER (1) -------- (None) > --- PROPULSION (2) --- (None) > --- UTILITY (2) ------ High-capacity Storage Unit > --- WEAPON (2) ------- (None) > --- INVENTORY (12) --- Light Ion Engine Heat Sink High-capacity Storage Unit Sensor Array Seismic Analyzer Transport Network Coupler Peak State ------------ > --- POWER ------------ Light Ion Engine > --- PROPULSION ------- Aluminum Leg Aluminum Leg > --- UTILITY ---------- Small Storage Unit Improved Terrain Scanner > --- WEAPON ----------- Small Laser Assault Rifle > --- INVENTORY -------- Light Ion Engine Light Ion Engine Light Ion Engine Small Laser Mining Laser [Rating: 8] Favorites ----------- Power Light Ion Engine Engine Light Ion Engine Propulsion Aluminum Leg Leg Aluminum Leg Utility Improved Terrain Scanner Device Improved Terrain Scanner Storage Small Storage Unit Weapon Small Laser Energy Gun Small Laser Ballistic Gun Light Assault Rifle Special Weapon Mining Laser Build | -11 -10 ------- Run | Scr Mat Slots Evolved . | . . Power . | . . Propulsion . | . . Utility . | . . Weapon . | . . Parts Attached 16 | 8 8 Power 2 | 1 1 Engine 2 | 1 1 Core . | . . Reactor . | . . Propulsion 2 | 2 . Treads . | . . Leg 2 | 2 . Wheel . | . . Hover . | . . Flight . | . . Utility 5 | 2 3 Device 2 | 1 1 Storage 3 | 1 2 Processor . | . . Hackware . | . . Protection . | . . Artifact . | . . Weapon 7 | 3 4 Energy Gun 3 | 2 1 Energy Cannon . | . . Ballistic Gun 3 | 1 2 Ballistic Cannon . | . . Launcher . | . . Special Weapon 1 | . 1 Impact Weapon . | . . Slashing Weapon . | . . Piercing Weapon . | . . Special Melee Weapon . | . . Unidentified Prototypes . | . . Parts Lost 10 | . 10 Power 2 | . 2 Propulsion 2 | . 2 Utility 1 | . 1 Weapon 5 | . 5 Highest Loss Streak 9 | . 9 Average Slot Usage (%) 95 | . 95 Engine 13 | . 13 Leg 26 | . 26 Device 13 | . 13 Storage 14 | . 14 Energy Gun 11 | . 11 Ballistic Gun 14 | . 14 Naked Turns . | . . Heaviest Build 38 | 11 38 Greatest Support 20 | 20 20 Greatest Overweight (x) 10 | . 10 Average Overweight (x) . | . . Largest Inventory Capacity 12 | 6 12 Average Capacity 7 | 5 7 Most Carried 9 | 6 9 Average Carried 5 | 4 6 Final Capacity 12 | 6 12 Final Carried 6 | 6 6 Class Distribution -------------------- 100% | Mutant Dominant Class ---------------- Mutant | -10/Materials Resources | -11 -10 ----------- Run | Scr Mat Matter Collected 414 | 334 80 Remotely . | . . Salvage Created 403 | 222 181 Parts 32 | 20 12 Haulers Intercepted 1 | . 1 Recyclers Shooed . | . . Parts Field Recycled . | . . Retrieved Matter . | . . Parts Self-Destructed . | . . Prevented . | . . Kills | -11 -10 ------- Run | Scr Mat Combat Hostiles Destroyed 6 | . 6 Guns 6 | . 6 Classes Destroyed 6 | 3 3 Worker 2 | 2 . Tunneler 5 | 5 . Hauler 1 | . 1 Recycler 1 | 1 . Swarmer 4 | . 4 Grunt 2 | . 2 Best Kill Streak 5 | 3 5 Combat Bots Only 5 | . 5 Max Kills in Single Turn 1 | 1 1 Gunslinging . | . . Exploded . | . . Melee . | . . Uniques/NPCs Destroyed . | . . Combat | -11 -10 -------- Run | Scr Mat Damage Taken 1035 | . 1035 Core 252 | . 252 Absorbed by Shields . | . . Core Remaining (%) 100 | 100 . Volleys Fired 48 | 18 30 Largest 2 | 2 2 Hottest 120 | 60 120 Shots Fired 94 | 36 58 Gun 91 | 36 55 Cannon . | . . Launcher . | . . Special 3 | . 3 Kinetic 50 | 18 32 Thermal 44 | 18 26 Explosive . | . . Electromagnetic . | . . Robot Hit Streak 8 | 6 8 Robot Miss Streak 3 | 2 3 Penetration Max . | . . Secondary Targets . | . . Shots Hit Robots 53 | 19 34 Core Hits 21 | 9 12 Critical Hits . | . . Critical Kills . | . . Critical Parts Destroyed . | . . Melee Attacks . | . . Impact . | . . Slashing . | . . Piercing . | . . Sneak Attacks . | . . Combat Hostiles . | . . Follow-up Attacks . | . . Damage Inflicted 624 | 262 362 Guns 576 | 262 314 Cannons . | . . Explosions . | . . Melee . | . . Ramming . | . . Kinetic 305 | 144 161 Thermal 319 | 118 201 Explosive . | . . Electromagnetic . | . . Impact . | . . Slashing . | . . Piercing . | . . Highest Corruption 2 | . 2 Average Corruption 2 | . 2 Corruption Purged . | . . Effects 6 | . 6 Heat Flow Errors 1 | . 1 Energy Discharges 2 | . 2 Data Loss (minor) 1 | . 1 Targeting Errors 1 | . 1 Weapon Failures 1 | . 1 Overload Shots . | . . Overflow Damage . | . . Projectiles . | . . Explosions . | . . Melee . | . . Knockbacks . | . . Impact . | . . Kinetic . | . . Secondary . | . . Self-Inflicted Damage . | . . Shots . | . . Rammed . | . . Targets Rammed . | . . Kicked . | . . Crushed . | . . Highest Temperature 262 | . 262 Average Temperature 48 | . 48 Received Heat Transfer 369 | . 369 Siege Activations . | . . Robots Corrupted . | . . Combat Hostiles . | . . Parts Fried . | . . Impact Corruptions . | . . Robots Melted . | . . Combat Hostiles . | . . Parts Melted . | . . Heat Transferred 725 | 275 450 Parts Sabotaged . | . . Parts Stolen . | . . Parts Stripped . | . . Power Chain Reactions . | . . Missiles Intercepted . | . . Alert | -11 -10 ------- Run | Scr Mat Peak Influence 158 | 40 158 Average Influence 74 | 17 104 Maximum Alert Level . | . . Low Security (%) 100 | 100 100 Level 1 . | . . Level 2 . | . . Level 3 . | . . Level 4 . | . . Level 5 . | . . High Security . | . . Max Security . | . . Squads Dispatched 1 | . 1 Investigation . | . . Extermination . | . . Reinforcement 1 | . 1 Assault . | . . Garrison . | . . Intercept . | . . Construction Impeded . | . . Haulers Reinforced . | . . Stealth | -11 -10 --------- Run | Scr Mat Distress Signals 1 | . 1 Communications Jammed . | . . Distress Signals . | . . Times Spotted 19 | . 19 Peak Tracking Total 10 | . 10 Tactical Retreats 1 | . 1 Traps | -11 -10 ------- Run | Scr Mat Traps Triggered 1 | . 1 Indirectly . | . . Trap Hack Attempts . | . . Triggered . | . . Disarmed . | . . Reprogrammed . | . . Reused . | . . Traps Extracted . | . . Installed . | . . Triggered . | . . Machines | -11 -10 ---------- Run | Scr Mat Machines Disabled . | . . Max in Single Turn . | . . Machines Sabotaged . | . . Garrisons Compromised . | . . Overloaded Fab Kills . | . . Fab Network Shutdowns . | . . Hacking | -11 -10 --------- Run | Scr Mat Machines Accessed 1 | . 1 Terminals 1 | . 1 Fabricators . | . . Repair Stations . | . . Recycling Units . | . . Scanalyzers . | . . Garrison Access . | . . Total Hacks 3 | . 3 Successful 2 | . 2 Failed 1 | . 1 Catastrophic . | . . Database Lockouts . | . . Manual . | . . Terminals 3 | . 3 Fabricators . | . . Repair Stations . | . . Recycling Units . | . . Scanalyzers . | . . Garrison Access . | . . Terminal Hacks 2 | . 2 Alert Level 1 | . 1 Dispatch Records 1 | . 1 Fabricator Hacks . | . . Repair Station Hacks . | . . Recycling Unit Hacks . | . . Scanalyzer . | . . Garrison Access Hacks . | . . Unauthorized Hacks . | . . Terminals . | . . Fabricators . | . . Repair Stations . | . . Recycling Units . | . . Scanalyzers . | . . Garrison Access . | . . Data Cores Recovered . | . . Used . | . . Hacking Detections 1 | . 1 Full Trace Events . | . . Feedback Events . | . . Feedback Blocked . | . . Robot Schematics Acquired . | . . Robots Built . | . . Matter . | . . Time . | . . Total Robot Build Rating . | . . Part Schematics Acquired . | . . Parts Built . | . . Matter . | . . Time . | . . Total Part Build Rating . | . . Parts Repaired . | . . Time . | . . Parts Recycled . | . . Recycled Matter . | . . Retrieved Matter . | . . Retrieved Components . | . . Parts Scanalyzed . | . . Part Schematics Acquired . | . . Parts Damaged . | . . Bothacking | -11 -10 ------------ Run | Scr Mat Used RIF Installer . | . . Robots Hacked . | . . Non-combat . | . . Combat . | . . Robot Hacks Applied . | . . Relay Couplers Released . | . . Robots Rewired . | . . Allies Hacked . | . . Hacks Repelled . | . . Allies | -11 -10 -------- Run | Scr Mat Total Allies . | . . Largest Group . | . . Highest-Rated Group . | . . Highest-Rated Ally . | . . Total Orders . | . . Ally Attacks . | . . Total Damage . | . . Kills . | . . Allies Corrupted . | . . Allies Melted . | . . Intel | -11 -10 ------- Run | Scr Mat Robot Analysis Total . | . . Derelict Logs Recovered . | . . Drone Launches . | . . Drone Recoveries . | . . Exploration | -11 -10 ------------- Run | Scr Mat Turns Passed 733 | 256 477 Spaces Moved 440 | 156 284 Core 11 | 9 2 Treads . | . . Legs 429 | 147 282 Wheels . | . . Hover . | . . Flight . | . . Fastest Speed 50 | 50 120 Average Speed 123 | 115 128 Slowest Speed 550 | 120 550 Overloaded Moves . | . . Propulsion Burnouts . | . . Robots Hopped . | . . Cave-ins Triggered . | . . Exploration Rate (%) 23 | 9 38 Regions Visited 1 Branch Regions . Pre-discovered Areas . | . . Known Exits Taken . | . . Unknown Exits Taken 1 | 1 . Scrap Searched . | . . Spaces Dug . | . . Terrain Destroyed . | . . Melee . | . . Projectile . | . . AOE . | . . Actions | -11 -10 --------- Run | Scr Mat Total 537 | 194 343 Wait 5 | . 5 Move 439 | 155 284 Hop . | . . Pick Up 23 | 13 10 Fast Attach . | . . Attach 13 | 7 6 Detach . | . . Swap 3 | 1 2 Drop 6 | . 6 Fire 48 | 18 30 Melee . | . . Ram . | . . Kick . | . . Crush . | . . Escape Stasis . | . . Rewire . | . . Trap . | . . Miscellaneous . | . . Route ------- -11/Scrapyard -10/Materials (discovered 2 exits: [*Mat x2]) History --------- Turn | Location | Event 8 | -11/Scrapyard | Discovered new exit (range 16) 257 | -11/Scrapyard | Entered Materials 319 | -10/Materials | Build established: Mutant 449 | -10/Materials | Discovered new exit (range 12) 660 | -10/Materials | Discovered new exit (range 16) 715 | -10/Materials | Core integrity fell below 50% 733 | -10/Materials | Core integrity fell below 20% 734 | -10/Materials | Destroyed by S-10 Pest with Light Assault Rifle Last Messages --------------- S-10 Pest destroyed. U-05 Engineer lays Concrete. ALERT: Hostiles spotted, dispatching reinforcements to Terminal M005. [Achievement: Uninvited Guest] Lgt. Ion Engine destroyed. Lgt. Assault Rifle destroyed. Imp. Terrain Scanner destroyed. U-05 Engineer lays Concrete. U-05 Engineer destroyed. Lgt. Ion Engine destroyed. R-06 Scavenger collects Structural Scanner. S-10 Pest destroyed. R-06 Scavenger collects Lgt. Ion Engine. Lgt. Assault Rifle destroyed. K-01 Serf collects debris. System corrupted: Component data lost. Aluminum Leg destroyed. Mining Laser destroyed. U-05 Engineer lays Concrete. [Achievement: First Step to Greatness] Map ----- +----------------------------------------------------+ | ??????????????????# ???????????#???????????????? | | ??????????????????# ???????????????????????????? | | ??????????????????# #??? ??????#???????????????? | | ??????????????????# #????????? # ??????????????? | | ??????????######### ######### / ??????????????? | | ??????????? #???????????????? | | ????????????? #???????????????? | | ?????????????? #???????????????? | | ??????????" ?? """ #???????????????? | | ??????????"" """"" ???????????? | | ??????????"" """""[ #???? ???????????? | | ?????????""" """""% ##### ##??????? ???????????? | | ??????? """ """ = ""#???????????# #??????????? | | ?????? T"#???????????# #??????????? | | ?????? ""###+###+##### #???????#??? | | ??????? """ #### ## #??????????? | | ?????????""" #??# ## ##?????????? | | ?????????""" #### # #?????????? | | ?????????""" ""## # #?????????? | | ????? """ ""## + #?????????? | | ????# !! T"## # #?????????? | | ????# !!!""## # #?#???????? | | ????T ^ !! ""## # #?????????? | | ????# %u##########+### #####?#???? | | ???? a rr g #?????? | | ????? gs @ #?#???? | | ????? g g #?????? | | ?????? ######### ###########+#########? | | ?????? #?#?????# # ## #? | | ?????? #??#?##?# #! ## #? | | ??????? ##??#???# #! ## #? | | ??????? ##??#???#k # ! ## #? | | ???????? ##??????# # %! ## #? | | ????????##### ######### ####/###### """"" #? | | ????????????# # ## %% # """"" #? | | ????????????# # """ + ! + """"" #? | | ????????????# # """ ##k ###########? | | #???????????# # """ ####+####### ##????##???? | | ????? ????? # + ## """ # #??????? ??? | | ????????????# # """ ## """"" # ???# ????? | | ????#???????# # """ ## """"" + ???????? | | ????????????# # """ ## """"" # + ????? | | ????????????# # ## """ # #### #?? ??? | | ????????????# ^# """ ## # #??? #?????? | | ????????????# # """ ## # ??#?? #????? | | ???########## # """ ## # ????? #???? | | ???# # # ############ #???? #???? | | ???# """ + ###+####?????? ??+ ??????? #???? | | ???# """ # #?? ???????????????#??????? #???? | | ???# """ # < ##??#???? ?????????????????"#???? | +----------------------------------------------------+ Best States ------------- Heat Dissipation 25 Energy Generation 10 Energy Capacity 125 Matter Stores 300 Matter Capacity 300 Sight Range 16 Terrain Scan Range 16 Terrain Scan Density 10 Evasion (%) 50 Item Schematics ----------------- None Robot Schematics ------------------ None Fabricated ------------ Nothing Alien Tech Used ----------------- None Achievements -------------- First Step to Greatness Loot Pinata Uninvited Guest Challenges ------------ None Game ------ Seed DeuteriumRocketInverter Manual? 0 Play Time 00:14:00 Cumulative 15.2 hours Start 2019.12.14 @ 23:59:18 End 2019.12.15 @ 00:16:26 Sessions 1 Manual Loads 0 Difficulty Rogue Special Mode None Game No. 22 Rogue 22 Adventurer 0 Explorer 0 Win Type - Total 0 Types 0/0/0/0/0/0/0 Lore% 4 Gallery% 18 Achievement% 1 Wizard Run 0 Options --------- ASCII 0 Keyboard 0 Movement Numpad Keybinds 0 Fullscreen 1 Font 16/SmallcapsGlow Map View 75x55 Tactical HUD 0 Map Filters NONE Filters NONE Steam 1 RUN: 31594762-56a9-410b-a529-93c9e19cac35